bitfinex/quotes_SOLUSD_20220114
["timestamp","ask_amount","ask_price","bid_price","bid_amount"]
[1642202263511,0.25,147.03,146.96,10.4537]
[1642202263710,6.25,147.03,146.96,10.4537]
[1642202263911,6.0,147.03,146.96,10.4537]
[1642202264110,6.25,147.03,146.96,10.4537]
[1642202264312,0.25,147.03,146.96,10.4537]
[1642202265113,80.57490559,147.04,146.96,10.4537]
[1642202269018,80.57490559,147.04,146.96,10.2037]
[1642202269821,80.57490559,147.04,146.94,22.6063]
[1642202270021,10.208,147.0,146.92,3.88092066]
[1642202270224,2.721,146.99,146.92,3.88092066]
[1642202270622,8.971,146.99,146.92,3.88092066]
[1642202270822,36.25813043,146.98,146.89,13.56092066]
[1642202271023,70.03183043,146.98,146.89,13.56092066]
[1642202271424,70.03183043,146.98,146.89,13.81092066]
[1642202271851,10.21,146.97,146.89,13.81092066]
[1642202272055,16.46,146.97,146.89,9.93]
[1642202272855,16.46,146.97,146.88,3.88092066]
[1642202273052,10.2118,146.94,146.88,3.88092066]
[1642202273255,10.2118,146.94,146.87,3.88092066]
[1642202273454,16.4618,146.94,146.87,3.88092066]
[1642202273856,49.65335068,146.93,146.87,32.08793706]
[1642202274054,55.90335068,146.93,146.87,32.08793706]
[1642202274255,55.90335068,146.93,146.87,28.4570164]
[1642202274456,6.25,146.93,146.87,28.4570164]
[1642202274655,6.0,146.93,146.87,28.4570164]
[1642202274855,36.5408,146.96,146.87,28.4570164]
[1642202274856,6.0,146.94,146.87,28.4570164]
[1642202275056,0.25,146.94,146.87,38.6674164]
[1642202275455,0.25,146.94,146.87,28.4570164]
[1642202275656,2.972,146.94,146.87,28.4570164]
[1642202276058,8.972,146.94,146.87,38.6675164]
[1642202276758,6.25,146.94,146.87,38.6675164]
[1642202276958,0.25,146.94,146.87,38.6675164]
[1642202277158,6.25,146.94,146.87,38.6675164]
[1642202277360,6.0,146.94,146.87,38.6675164]
[1642202277558,6.25,146.94,146.87,38.6675164]
[1642202277759,0.25,146.94,146.87,38.6675164]
[1642202277960,6.25,146.94,146.87,38.6675164]
[1642202278459,0.51,146.94,146.87,38.6675164]
[1642202278658,6.51,146.94,146.87,38.6675164]
[1642202278863,6.0,146.94,146.87,38.6675164]
[1642202279060,6.51,146.94,146.87,38.6675164]
[1642202279358,0.51,146.94,146.87,38.6675164]
[1642202279558,6.25,146.94,146.87,38.6675164]
[1642202279758,6.51,146.94,146.87,38.6675164]
[1642202279957,0.51,146.94,146.87,38.6675164]
[1642202280161,53.99945254,146.95,146.87,38.6675164]
[1642202280360,64.21065254,146.95,146.87,38.6675164]
[1642202280862,63.96065254,146.95,146.87,38.6675164]
[1642202281559,16.2112,146.95,146.87,38.6675164]
[1642202282059,6.0,146.95,146.87,38.6675164]
[1642202282259,6.26,146.95,146.87,38.6675164]
[1642202282461,6.0,146.95,146.88,12.9313]
[1642202282861,6.25,146.95,146.88,13.1813]
[1642202283059,6.25,146.95,146.88,2.722]
[1642202283260,0.25,146.95,146.88,2.722]
[1642202283461,6.25,146.95,146.88,2.722]
[1642202283660,2.722,146.94,146.88,2.722]
[1642202284063,8.972,146.94,146.88,2.722]
[1642202284660,2.972,146.94,146.88,2.722]
[1642202285061,2.722,146.94,146.88,2.722]
[1642202285261,2.722,146.94,146.88,2.972]
[1642202286164,12.9331,146.95,146.88,0.25]
[1642202286365,18.9331,146.95,146.88,0.25]
[1642202286566,18.9331,146.95,146.87,28.2070164]
[1642202286567,19.1831,146.95,146.87,28.2070164]
[1642202286965,19.1831,146.95,146.87,38.4174164]
[1642202287368,8.972,146.95,146.87,38.4174164]
[1642202287565,8.972,146.95,146.87,38.6674164]
[1642202287967,3.232,146.95,146.87,38.6674164]
[1642202288369,0.51,146.95,146.87,38.6674164]
[1642202288568,77.30496131,146.96,146.87,38.6674164]
[1642202288768,77.56496131,146.96,146.87,38.6674164]
[1642202289172,87.77536131,146.96,146.87,38.4174164]
[1642202289575,87.77536131,146.96,146.87,28.2070164]
[1642202290977,87.77536131,146.96,146.87,28.4570164]
[1642202292776,87.77536131,146.96,146.87,28.2070164]
[1642202295884,89.47613719,146.96,146.87,28.2070164]
[1642202298607,89.47613719,146.96,146.87,28.4570164]
[1642202299205,87.77536131,146.96,146.87,28.4570164]
[1642202299405,85.05336131,146.96,146.87,28.4570164]
[1642202301211,85.05336131,146.96,146.87,28.2070164]
[1642202302613,2.722,146.95,146.87,28.2070164]
[1642202302814,2.722,146.95,146.87,28.4570164]
[1642202303012,8.972,146.95,146.87,28.4570164]
[1642202304012,6.51,146.95,146.87,28.4570164]
[1642202304411,0.51,146.95,146.87,28.4570164]
[1642202304614,6.0,146.95,146.87,28.4570164]
[1642202304813,6.51,146.95,146.87,28.4570164]
[1642202305312,0.51,146.95,146.87,28.4570164]
[1642202305513,0.25,146.95,146.87,28.4570164]
[1642202305915,87.77536131,146.96,146.87,28.4570164]
[1642202308217,87.77536131,146.96,146.87,31.1790164]
[1642202308617,87.77536131,146.96,146.87,2.972]
[1642202308817,87.77536131,146.96,146.87,2.722]
[1642202309018,89.47613719,146.96,146.87,2.722]
[1642202310122,89.47613719,146.96,146.84,23.3605]
[1642202311326,89.47613719,146.96,146.82,14.09432066]
[1642202311524,9.68,146.95,146.82,3.88092066]
[1642202311725,10.2155,146.89,146.82,3.88092066]
[1642202312126,16.4655,146.89,146.82,3.88092066]
[1642202312329,38.55327667,146.88,146.82,3.88092066]
[1642202312528,47.52627667,146.88,146.81,3.88092066]
[1642202313328,47.52627667,146.88,146.79,31.65085107]
[1642202313527,24.9329,146.87,146.79,31.65085107]
[1642202313927,30.9329,146.87,146.79,31.65085107]
[1642202314130,6.0,146.87,146.8,3.88629455]
[1642202314529,6.0,146.91,146.8,3.88629455]
[1642202314729,23.6434,146.9,146.81,24.3737]
[1642202314931,29.6434,146.9,146.81,24.3737]
[1642202315129,42.95453746,146.89,146.81,28.50462066]
[1642202315328,42.95453746,146.89,146.82,10.2134]
[1642202315531,43.21453746,146.89,146.82,10.4634]
[1642202316128,0.26,146.89,146.82,10.4634]
[1642202316328,23.8934,146.9,146.82,10.4634]
[1642202316530,24.1534,146.9,146.82,13.1864]
[1642202316865,24.1534,146.9,146.82,17.07269455]
[1642202317133,41.48164357,146.89,146.82,17.07269455]
[1642202317330,24.1534,146.9,146.82,17.07269455]
[1642202317530,30.1534,146.9,146.82,17.07269455]
[1642202317735,30.1534,146.9,146.82,13.1864]
[1642202318139,6.0,146.9,146.82,13.1864]
[1642202318334,37.83016041,146.91,146.82,13.1864]
[1642202318535,43.83016041,146.91,146.82,13.1864]
[1642202318935,44.08016041,146.91,146.82,13.1864]
[1642202319335,44.34016041,146.91,146.82,13.1864]
[1642202320138,24.3447,146.9,146.82,13.1864]
[1642202320537,30.3447,146.9,146.82,13.1864]
[1642202322941,30.6047,146.9,146.82,13.1864]
[1642202325970,30.3447,146.9,146.82,13.1864]
[1642202326168,24.3447,146.9,146.82,13.1864]
[1642202326469,30.3447,146.9,146.82,13.1864]
[1642202327369,30.6047,146.9,146.82,13.1864]
[1642202328172,24.6047,146.9,146.82,13.1864]
[1642202328573,27.5777,146.9,146.82,10.4634]
[1642202330873,33.5777,146.9,146.82,10.4634]
[1642202332474,33.5777,146.9,146.82,16.4634]
[1642202332675,33.3277,146.9,146.82,16.4634]
[1642202332975,27.3277,146.9,146.82,16.4634]
[1642202333275,24.6047,146.9,146.82,19.1864]
[1642202333877,24.6047,146.9,146.82,87.1864]
[1642202334778,24.6047,146.9,146.82,81.1864]
[1642202334977,24.8547,146.9,146.82,81.1864]
[1642202335177,24.8547,146.9,146.82,2.973]
[1642202335380,2.723,146.89,146.82,2.973]
[1642202335580,8.973,146.89,146.82,2.973]
[1642202335982,9.233,146.89,146.82,2.973]
[1642202337583,9.233,146.89,146.82,2.723]
[1642202337789,9.233,146.89,146.81,24.3737]
[1642202337984,9.233,146.89,146.81,24.6237]
[1642202338786,9.233,146.89,146.81,0.25]
[1642202338984,9.233,146.89,146.8,10.4648]
[1642202340886,19.4487,146.89,146.8,10.4648]
[1642202343687,13.4487,146.89,146.8,10.4648]
[1642202343891,19.4487,146.89,146.8,10.4648]
[1642202344289,13.4487,146.89,146.8,10.4648]
[1642202344488,13.4487,146.89,146.8,10.2148]
[1642202344789,13.4487,146.89,146.79,25.2865]
[1642202345688,19.4487,146.89,146.79,32.61493526]
[1642202346091,19.4487,146.89,146.79,32.36493526]
[1642202346291,19.4487,146.89,146.79,2.723]
[1642202347194,19.4487,146.89,146.78,10.2162]
[1642202347395,19.4487,146.89,146.77,29.92042066]
[1642202347396,19.4487,146.89,146.79,22.78185332]
[1642202348595,19.4487,146.89,146.79,23.03185332]
[1642202350297,13.4487,146.89,146.79,23.03185332]
[1642202350923,13.4487,146.89,146.79,25.75585332]
[1642202351623,19.4487,146.89,146.79,25.75585332]
[1642202352223,19.4487,146.89,146.79,2.974]
[1642202352422,19.4487,146.89,146.8,0.7567226]
[1642202352423,1.70077588,146.88,146.8,0.7567226]
[1642202352623,10.2191,146.85,146.8,0.7567226]
[1642202353124,16.4691,146.85,146.8,0.7567226]
[1642202353323,69.71566681,146.84,146.8,0.7567226]
[1642202353524,75.96566681,146.84,146.8,0.7567226]
[1642202355430,75.96566681,146.84,146.79,0.7567226]
[1642202355829,75.71566681,146.84,146.79,0.7567226]
[1642202356433,75.71566681,146.84,146.79,2.70026887]
[1642202356830,75.71566681,146.84,146.79,2.95026887]
[1642202357034,75.97566681,146.84,146.79,2.95026887]
[1642202357631,75.97566681,146.84,146.8,1.94354627]
[1642202358734,30.6014,146.84,146.8,1.94354627]
[1642202359132,30.6014,146.84,146.81,0.7567226]
[1642202359332,5.97994747,146.83,146.81,0.7567226]
[1642202359535,11.97994747,146.83,146.81,0.7567226]
[1642202360133,58.02252397,146.83,146.82,0.07477647]
[1642202360333,103.03195996,146.83,146.82,0.07477647]
[1642202360733,106.24938346,146.83,146.81,0.7567226]
[1642202361234,105.98938346,146.83,146.81,0.7567226]
[1642202361435,60.97994747,146.83,146.81,0.7567226]
[1642202362637,61.23994747,146.83,146.81,0.7567226]
[1642202362936,58.28252397,146.83,146.82,0.07477647]
[1642202363135,55.26,146.83,146.82,0.07477647]
[1642202363336,6.26,146.83,146.82,0.83149907]
[1642202363936,9.2174235,146.83,146.82,0.7567226]
[1642202364138,74.2174235,146.83,146.82,0.7567226]
[1642202364336,74.2174235,146.83,146.82,0.0067226]
[1642202364938,74.4674235,146.83,146.82,0.0067226]
[1642202365136,125.4674235,146.83,146.82,0.0067226]
[1642202365737,74.4674235,146.83,146.82,0.0067226]
[1642202365943,74.2174235,146.83,146.82,0.0067226]
[1642202366741,74.4674235,146.83,146.82,0.0067226]
[1642202366943,77.48994747,146.83,146.82,0.0067226]
[1642202367150,122.48994747,146.83,146.82,0.0067226]
[1642202367442,77.23994747,146.83,146.82,0.0067226]
[1642202370048,114.23994747,146.83,146.82,0.0067226]
[1642202370248,77.48994747,146.83,146.82,0.0067226]
[1642202374657,77.22994747,146.83,146.82,0.0067226]
[1642202374854,12.22994747,146.83,146.82,0.0067226]
[1642202375054,61.22994747,146.83,146.82,0.0067226]
[1642202375254,55.22994747,146.83,146.82,0.0067226]
[1642202375955,55.48994747,146.83,146.82,0.0067226]
[1642202376457,61.48994747,146.83,146.82,0.0067226]
[1642202376881,12.23994747,146.83,146.82,0.0067226]
[1642202378084,11.97994747,146.83,146.82,0.0067226]
[1642202378486,6.0,146.83,146.82,0.08149907]
[1642202378982,54.0,146.83,146.82,0.0067226]
[1642202379384,54.26,146.83,146.82,0.0067226]
[1642202379785,6.26,146.83,146.82,0.0067226]
[1642202381984,46.23994747,146.83,146.82,0.0067226]
[1642202382887,83.23994747,146.83,146.82,0.0067226]
[1642202384791,133.23994747,146.83,146.82,0.0067226]
[1642202385394,83.23994747,146.83,146.82,0.0067226]
[1642202387898,162.48994747,146.83,146.82,0.0067226]
[1642202388129,165.21394747,146.83,146.82,0.0067226]
[1642202388304,162.48994747,146.83,146.82,0.0067226]
[1642202388702,83.48994747,146.83,146.82,0.0067226]
[1642202389101,46.48994747,146.83,146.82,0.0067226]
[1642202389303,46.23994747,146.83,146.82,0.0067226]
[1642202389802,82.23994747,146.83,146.82,0.0067226]
[1642202391503,46.23994747,146.83,146.82,0.0067226]
[1642202393206,46.48994747,146.83,146.82,0.0067226]
[1642202393406,58.41102335,146.83,146.74,6.60492066]
[1642202393715,32.6955,146.82,146.74,6.60492066]
[1642202394107,39.61758778,146.81,146.74,6.60492066]
[1642202394307,10.2234,146.78,146.74,6.60492066]
[1642202394507,2.725,146.77,146.74,2.724]
[1642202394705,49.40433473,146.76,146.74,2.724]
[1642202395107,49.40433473,146.76,146.74,0.004]
[1642202395108,55.65433473,146.76,146.74,0.004]
[1642202395311,29.4224,146.76,146.74,0.004]
[1642202395736,29.1724,146.76,146.74,0.004]
[1642202396436,39.63498022,146.75,146.7,29.89728771]
[1642202396635,29.1724,146.76,146.7,30.14728771]
[1642202396836,6.0,146.75,146.7,38.12228771]
[1642202397036,6.0,146.76,146.7,38.12228771]
[1642202397236,6.0,146.76,146.7,10.95]
[1642202397436,8.726,146.81,146.7,2.725]
[1642202397636,0.25,146.76,146.68,2.725]
[1642202397838,0.25,146.76,146.68,2.975]
[1642202398036,0.25,146.76,146.68,0.25]
[1642202398235,0.25,146.76,146.68,29.47684484]
[1642202398437,2.976,146.76,146.68,32.20284484]
[1642202398636,24.9558,146.75,146.68,32.20284484]
[1642202398838,24.9558,146.75,146.68,29.47684484]
[1642202399039,31.2058,146.75,146.68,29.47684484]
[1642202400139,30.9558,146.75,146.68,42.42654484]
[1642202400343,24.9558,146.75,146.68,42.42654484]
[1642202400539,25.2058,146.75,146.68,31.95284484]
[1642202400739,2.726,146.74,146.68,31.95284484]
[1642202400940,2.976,146.74,146.68,31.95284484]
[1642202401440,8.976,146.74,146.68,31.95284484]
[1642202401638,2.976,146.74,146.68,29.22684484]
[1642202401840,9.236,146.74,146.68,29.22684484]
[1642202404045,24.9558,146.75,146.69,2.726]
[1642202404242,2.726,146.78,146.69,2.726]
[1642202404443,2.726,146.8,146.69,2.976]
[1642202404650,23.6953,146.79,146.66,2.631]
[1642202404844,121.0,146.76,146.62,5.82122346]
[1642202405044,121.0,146.71,146.62,0.00122346]
[1642202405245,43.885,146.7,146.62,0.00122346]
[1642202405446,52.862,146.7,146.62,0.00122346]
[1642202405644,49.61243071,146.69,146.56,57.0313158]
[1642202405844,36.4035,146.68,146.56,48.13276416]
[1642202406045,9.68,146.67,146.56,48.13276416]
[1642202406345,12.9594,146.66,146.56,48.13276416]
[1642202406547,9.68,146.65,146.56,48.38276416]
[1642202406745,38.48829153,146.64,146.56,48.38276416]
[1642202406955,54.41829153,146.64,146.56,48.38276416]
[1642202407145,54.41829153,146.64,146.56,48.13276416]
[1642202407346,64.65009153,146.64,146.56,48.13276416]
[1642202407948,26.1618,146.64,146.56,48.13276416]
[1642202408546,2.728,146.63,146.5,2.728]
[1642202408746,10.2382,146.56,146.5,2.728]
[1642202408946,26.4282,146.56,146.45,2.729]
[1642202409148,26.4282,146.56,146.48,2.73]
[1642202409348,26.4282,146.56,146.45,2.73]
[1642202409549,49.3419585,146.55,146.46,50.38601279]
[1642202409848,10.241,146.51,146.46,54.28030703]
[1642202410048,25.63837967,146.5,146.44,7.78858848]
[1642202410249,28.36837967,146.5,146.44,5.67858848]
[1642202410553,34.61837967,146.5,146.44,5.67858848]
[1642202411152,10.2428,146.49,146.44,5.67858848]
[1642202411354,12.411,146.48,146.44,0.02858848]
[1642202411552,18.661,146.48,146.44,0.02858848]
[1642202411752,18.661,146.48,146.44,0.00858848]
[1642202412351,10.2458,146.46,146.44,0.00858848]
[1642202412552,94.65994747,146.45,146.44,0.00858848]
[1642202412957,100.90994747,146.45,146.44,0.00858848]
[1642202413456,111.15534747,146.45,146.44,0.00858848]
[1642202413651,208.15534747,146.45,146.44,0.00858848]
[1642202414652,222.49474782,146.45,146.37,0.00671104]
[1642202414852,2.731,146.44,146.37,0.00671104]
[1642202415055,10.2491,146.41,146.37,0.00671104]
[1642202415253,51.39230403,146.4,146.37,0.00671104]
[1642202415452,5.97994747,146.39,146.37,0.00671104]
[1642202415653,141.68,146.38,146.35,0.00962902]
[1642202415857,144.412,146.38,146.35,0.00962902]
[1642202416054,161.1724,146.38,146.36,0.00637854]
[1642202416254,130.83860493,146.37,146.36,0.00637854]
[1642202416455,146.76860493,146.37,146.36,0.00637854]
[1642202416654,152.7485524,146.37,146.36,0.00637854]
[1642202417555,155.4805524,146.37,146.36,0.00637854]
[1642202418261,68.4805524,146.37,146.36,0.00637854]
[1642202418464,34.89464747,146.37,146.36,0.00637854]
[1642202418661,32.16264747,146.37,146.36,0.00637854]
[1642202419262,9.68,146.43,146.36,2.81315501]
[1642202419461,59.91191005,146.46,146.37,2.0059668]
[1642202419665,45.97432288,146.43,146.38,2.731]
[1642202419866,45.97432288,146.43,146.37,1.5059668]
[1642202420564,45.97432288,146.43,146.36,0.00637854]
[1642202420765,2.732,146.42,146.36,0.00637854]
[1642202420966,52.23432288,146.43,146.36,0.00637854]
[1642202421167,2.732,146.42,146.36,0.00637854]
[1642202421567,8.982,146.42,146.36,0.00637854]
[1642202421965,8.982,146.42,146.33,17.39121503]
[1642202422166,2.732,146.42,146.33,17.39121503]
[1642202422366,9.68,146.45,146.34,1.70077588]
[1642202422567,6.0,146.45,146.34,9.44477588]
[1642202422767,6.0,146.45,146.35,2.732]
[1642202422972,36.28944322,146.46,146.36,3.55612785]
[1642202423173,36.28944322,146.46,146.37,2.732]
[1642202423369,6.0,146.49,146.37,2.732]
[1642202423571,15.68,146.51,146.37,4.68277588]
[1642202423769,11.94477588,146.49,146.37,2.732]
[1642202423971,2.731,146.48,146.36,3.55612785]
[1642202424170,9.68,146.47,146.36,3.80612785]
[1642202424371,2.731,146.46,146.36,3.80612785]
[1642202424571,2.731,146.48,146.37,2.731]
[1642202424774,6.0,146.49,146.37,9.86077588]
[1642202424974,6.0,146.49,146.37,8.41]
[1642202425172,18.411,146.52,146.37,8.41]
[1642202425373,43.50121768,146.51,146.37,8.41]
[1642202425574,2.731,146.5,146.37,8.41]
[1642202425973,8.981,146.5,146.37,8.41]
[1642202426475,19.2246,146.5,146.4,10.2428]
[1642202426675,19.2246,146.5,146.41,17.14121503]
[1642202426877,19.2246,146.5,146.41,16.14121503]
[1642202427082,19.2246,146.5,146.41,16.39121503]
[1642202427778,19.2246,146.5,146.39,10.2436]
[1642202428077,28.9046,146.5,146.39,10.2436]
[1642202428278,30.60537588,146.5,146.37,2.731]
[1642202428478,30.60537588,146.5,146.37,0.25]
[1642202428878,30.86537588,146.5,146.37,0.25]
[1642202429402,30.86537588,146.5,146.37,10.4949]
[1642202429603,30.86537588,146.5,146.37,10.2449]
[1642202429804,30.86537588,146.5,146.37,10.4949]
[1642202431707,10.2476,146.44,146.36,2.731]
[1642202431905,2.732,146.43,146.36,2.731]
[1642202432107,1.70077588,146.43,146.36,2.731]
[1642202432305,4.43277588,146.42,146.36,2.731]
[1642202432504,10.68277588,146.42,146.36,0.001]
[1642202432707,1.70077588,146.41,146.36,0.001]
[1642202432907,1.70077588,146.41,146.31,12.981]
[1642202433106,7.95077588,146.41,146.31,2.732]
[1642202433306,7.95077588,146.41,146.31,2.982]
[1642202433709,40.97458519,146.4,146.31,19.25005791]
[1642202433905,2.733,146.39,146.31,25.26745791]
[1642202434107,46.97458519,146.4,146.32,2.733]
[1642202434408,12.412,146.42,146.32,2.733]
[1642202434606,9.68,146.42,146.32,2.733]
[1642202435206,9.68,146.42,146.32,2.983]
[1642202435406,43.39519749,146.41,146.32,13.2317]
[1642202435611,2.732,146.4,146.32,10.4987]
[1642202436008,2.982,146.4,146.32,10.4987]
[1642202436211,2.982,146.4,146.32,9.4987]
[1642202436409,13.2317,146.4,146.31,15.01805791]
[1642202436810,19.2317,146.4,146.31,15.01805791]
[1642202437013,2.982,146.4,146.31,15.01805791]
[1642202437810,2.732,146.4,146.31,15.01805791]
[1642202438010,8.732,146.4,146.31,15.01805791]
[1642202438211,8.732,146.4,146.31,15.26805791]
[1642202438411,8.732,146.4,146.31,25.51745791]
[1642202438611,2.732,146.4,146.31,25.51745791]
[1642202438814,2.733,146.41,146.31,25.51745791]
[1642202439211,2.983,146.41,146.31,25.51745791]
[1642202439612,44.56870597,146.4,146.31,25.51745791]
[1642202439811,2.733,146.39,146.31,25.51745791]
[1642202440012,2.983,146.39,146.31,25.51745791]
[1642202440411,2.733,146.43,146.32,1.70077588]
[1642202440611,2.733,146.45,146.35,10.2466]
[1642202440812,6.0,146.45,146.35,10.2466]
[1642202441012,15.68,146.47,146.35,10.4966]
[1642202441215,39.40689418,146.45,146.36,3.42928497]
[1642202441413,2.732,146.44,146.36,3.42928497]
[1642202441612,2.732,146.44,146.36,3.67928497]
[1642202441813,9.242,146.44,146.36,3.67928497]
[1642202442212,8.992,146.44,146.36,3.67928497]
[1642202443113,2.992,146.44,146.36,3.67928497]
[1642202443314,2.992,146.44,146.35,10.2466]
[1642202443514,13.489,146.44,146.33,10.2476]
[1642202443713,19.489,146.44,146.33,10.2476]
[1642202444114,19.489,146.44,146.3,9.68]
[1642202444314,19.489,146.44,146.31,13.25176309]
[1642202444517,21.18977588,146.44,146.31,13.25176309]
[1642202444718,9.68,146.43,146.29,11.18257637]
[1642202444918,10.2507,146.39,146.29,11.18257637]
[1642202445317,16.5007,146.39,146.29,11.43257637]
[1642202445718,45.27172483,146.38,146.3,13.20136776]
[1642202445918,45.27172483,146.38,146.3,23.45136776]
[1642202446118,51.52172483,146.38,146.3,23.70136776]
[1642202447822,0.25,146.38,146.3,23.70136776]
[1642202448022,8.982,146.42,146.3,23.70136776]
[1642202448224,2.982,146.42,146.3,23.70136776]
[1642202448423,8.982,146.42,146.3,23.70136776]
[1642202448827,54.08461492,146.42,146.3,23.70136776]
[1642202449327,64.33321492,146.42,146.3,23.70136776]
[1642202449528,64.34321492,146.42,146.3,23.70136776]
[1642202450330,55.61121492,146.42,146.3,23.70136776]
[1642202450529,10.5086,146.42,146.3,23.70136776]
[1642202450829,10.7586,146.42,146.3,91.70136776]
[1642202451029,10.7586,146.42,146.3,23.70136776]
[1642202451430,36.36310178,146.41,146.3,23.70136776]
[1642202451731,39.09610178,146.41,146.3,23.70136776]
[1642202451928,39.34610178,146.41,146.3,23.70136776]
[1642202452330,2.983,146.41,146.3,33.38136776]
[1642202452735,0.25,146.41,146.3,33.38136776]
[1642202452931,19.4916,146.42,146.3,33.38136776]
[1642202453133,9.243,146.42,146.3,33.38136776]
[1642202453335,56.58807569,146.42,146.3,33.38136776]
[1642202454030,56.32807569,146.42,146.3,33.38136776]
[1642202454335,56.32807569,146.42,146.3,33.13136776]
[1642202454533,66.57647569,146.42,146.3,33.13136776]
[1642202455537,66.57647569,146.42,146.3,33.38136776]
[1642202456036,66.83647569,146.42,146.3,33.38136776]
[1642202457139,66.57647569,146.42,146.3,33.38136776]
[1642202458537,66.83647569,146.42,146.3,33.38136776]
[1642202462142,66.83647569,146.42,146.3,10.5]
[1642202462339,76.51647569,146.42,146.3,10.5]
[1642202462539,1.70077588,146.41,146.28,10.59277813]
[1642202462741,2.733,146.4,146.28,0.34167813]
[1642202462940,10.2528,146.36,146.28,0.59167813]
[1642202463239,46.38888095,146.35,146.28,0.34167813]
[1642202463442,55.12188095,146.35,146.28,0.34167813]
[1642202463740,49.12188095,146.35,146.28,0.34167813]
[1642202463941,49.63188095,146.35,146.28,0.34167813]
[1642202464341,46.89888095,146.35,146.28,0.34167813]
[1642202464643,46.64888095,146.35,146.28,1.91451532]
[1642202465040,46.64888095,146.35,146.28,2.16451532]
[1642202465442,46.89888095,146.35,146.28,0.34167813]
[1642202466041,46.89888095,146.35,146.27,9.84387813]
[1642202466444,46.64888095,146.35,146.28,14.74700154]
[1642202466842,46.89888095,146.35,146.28,14.99700154]
[1642202467042,46.38888095,146.35,146.28,25.24850154]
[1642202468747,46.38888095,146.35,146.28,14.99700154]
[1642202468950,46.63888095,146.35,146.28,0.25]
[1642202469453,46.63888095,146.35,146.26,10.5025]
[1642202469851,46.38888095,146.35,146.26,20.1825]
[1642202470050,46.38888095,146.35,146.28,10.2517]
[1642202470549,46.64888095,146.35,146.28,10.5017]
[1642202471149,46.89888095,146.35,146.27,15.33465955]
[1642202471350,46.89888095,146.35,146.27,15.58465955]
[1642202471749,46.89888095,146.35,146.26,19.9327]
[1642202471952,2.734,146.34,146.26,9.68]
[1642202472355,2.984,146.34,146.26,9.68]
[1642202472754,2.984,146.34,146.27,14.75592799]
[1642202472954,0.25,146.34,146.27,14.75592799]
[1642202473156,0.25,146.34,146.24,15.52998758]
[1642202473554,62.89278095,146.35,146.24,15.77998758]
[1642202473754,2.734,146.34,146.24,14.27998758]
[1642202473954,2.984,146.34,146.24,14.27998758]
[1642202474158,3.244,146.34,146.25,15.18183907]
[1642202474355,13.4981,146.34,146.25,12.53066653]
[1642202474557,13.4981,146.34,146.25,2.52696653]
[1642202474958,3.244,146.34,146.25,2.52696653]
[1642202475155,26.2457,146.34,146.25,2.52696653]
[1642202475455,26.2457,146.34,146.26,13.20878706]
[1642202475654,25.7357,146.34,146.26,13.45878706]
[1642202476056,25.7357,146.34,146.26,19.45878706]
[1642202476257,2.734,146.34,146.26,19.45878706]
[1642202476456,2.734,146.36,146.26,19.45878706]
[1642202477058,12.9868,146.36,146.26,13.45878706]
[1642202477258,47.26166914,146.35,146.26,23.71188706]
[1642202477462,47.51166914,146.35,146.26,23.71188706]
[1642202477658,47.52166914,146.35,146.26,23.71188706]
[1642202478060,58.02516914,146.35,146.27,2.27696653]
[1642202478281,2.734,146.34,146.27,2.27696653]
[1642202478584,2.984,146.34,146.27,2.27696653]
[1642202478780,76.984,146.34,146.27,2.27696653]
[1642202478981,8.984,146.34,146.27,2.27696653]
[1642202480381,19.2384,146.34,146.27,2.27696653]
[1642202480583,19.2384,146.34,146.23,2.27696653]
[1642202480782,23.7794,146.33,146.23,2.27696653]
[1642202480982,2.734,146.32,146.23,2.27696653]
[1642202481181,36.0456557,146.31,146.23,2.27696653]
[1642202481582,42.2956557,146.31,146.23,2.52696653]
[1642202481982,10.2574,146.3,146.23,2.52696653]
[1642202482381,16.2574,146.3,146.23,2.52696653]
[1642202483685,16.5074,146.3,146.23,2.27696653]
[1642202484683,45.19813987,146.28,146.23,2.27696653]